fUST/lending_fUST_20251107
["ID","MTS","AMOUNT","RATE_DAILY","PERIOD"]
[393327582,1762479463658,3032.94594148,0.00037205,30]
[393327584,1762479492146,164.3353724,0.00037205,120]
[393327585,1762479510426,500.0,0.00037205,60]
[393327586,1762479510702,500.0,0.00037205,60]
[393327587,1762479510955,500.0,0.00037205,60]
[393327588,1762479511216,503.94267131,0.00037205,60]
[393327591,1762479553711,152.4942531,0.00037206,20]
[393327592,1762479611236,176.07921548,0.00037206,120]
[393327656,1762479648366,215.0,0.00037206,120]
[393327657,1762479658401,1955.22,0.00037206,60]
[393327658,1762479658650,1955.22,0.00037206,60]
[393327659,1762479658929,1955.22,0.00037206,60]
[393327660,1762479659186,1955.22,0.00037206,60]
[393327661,1762479659422,1955.22,0.00037206,60]
[393327662,1762479659668,1955.22,0.00037206,60]
[393327663,1762479659900,1955.22,0.00037206,60]
[393327664,1762479660149,1955.22,0.00037206,60]
[393327665,1762479660440,1955.22,0.00037206,60]
[393327666,1762479661042,1955.22,0.00037206,60]
[393327667,1762479661340,1955.22,0.00037206,60]
[393327668,1762479661642,1955.22,0.00037206,60]
[393327669,1762479661922,1955.22,0.00037206,60]
[393327670,1762479662268,1955.22,0.00037206,60]
[393327671,1762479662530,1955.22,0.00037206,60]
[393327672,1762479662798,1955.22,0.00037206,120]
[393327673,1762479663036,1955.22,0.00037206,120]
[393327674,1762479663311,1955.22,0.00037206,120]
[393327675,1762479663825,1955.22,0.00037206,120]
[393327676,1762479663931,1955.22,0.00037206,120]
[393327677,1762479664164,1955.22,0.00037206,120]
[393327678,1762479664396,1955.22,0.00037206,120]
[393327679,1762479664683,1955.22,0.00037206,120]
[393327680,1762479664988,1955.38843324,0.00037206,120]
[393327682,1762479734490,370.3888543,0.00023288,30]
[393327683,1762479790396,500.0,0.00037206,60]
[393327684,1762479790651,500.0,0.00037206,60]
[393327685,1762479791070,500.0,0.00037206,60]
[393327686,1762479791181,200.80416016,0.00037206,20]
[393327687,1762479791361,500.0,0.00037206,60]
[393327688,1762479791835,516.38764201,0.00037206,60]
[393327689,1762479797011,-531.88144054,0.00015665,2]
[393327690,1762479797051,-162.9167041,0.00015791,2]
[393327691,1762479797093,-300.0,0.00016143,2]
[393327692,1762479797132,-3111.2257978,0.00016144,2]
[393327693,1762479797169,-3025.0436689,0.00016144,2]
[393327694,1762479797208,-1111.18739108,0.00016457,2]
[393327695,1762479797244,-1377.15870256,0.0001667,2]
[393327696,1762479797282,-500.0,0.00016767,2]
[393327697,1762479797317,-509.61755214,0.00016767,2]
[393327698,1762479797354,-500.0,0.00016767,2]
[393327699,1762479797391,-500.0,0.00016767,2]
[393327700,1762479797529,-298.99871988,0.00016767,2]
[393327701,1762479797567,-340.60330678,0.00016767,2]
[393327702,1762479797605,-285.4774734,0.00016767,2]
[393327703,1762479797647,-500.0,0.00016767,2]
[393327704,1762479797686,-500.0,0.00016767,2]
[393327705,1762479797724,-500.0,0.00016767,2]
[393327706,1762479797761,-500.0,0.00016767,2]
[393327707,1762479797798,-500.0,0.00016767,2]
[393327708,1762479797837,-500.0,0.00016767,2]
[393327709,1762479797874,-500.0,0.00016767,2]
[393327710,1762479797912,-500.0,0.00016767,2]
[393327711,1762479797949,-500.0,0.00016767,2]
[393327712,1762479797985,-47433.04301063,0.00016768,2]
[393327713,1762479798023,-300.0,0.00016768,2]
[393327714,1762479798060,-300.0,0.00016768,2]
[393327715,1762479798098,-300.0,0.00016768,2]
[393327716,1762479798134,-1200.0,0.00016768,2]
[393327717,1762479798172,-316.78,0.00016768,2]
[393327718,1762479798208,-300.0,0.0001677,2]
[393327719,1762479798245,-310.68906742,0.0001677,2]
[393327720,1762479798281,-300.78160585,0.00016773,2]
[393327721,1762479798317,-505.79206359,0.00016773,2]
[393327722,1762479798352,-505.90371195,0.00016773,2]
[393327723,1762479798387,-512.01841875,0.00016773,2]
[393327724,1762479798421,-500.0,0.00016773,2]
[393327725,1762479798458,-500.0,0.00016773,2]
[393327726,1762479798493,-3253.88180337,0.00016886,2]
[393327727,1762479798531,-218.38972017,0.0001699,2]
[393327728,1762479798567,-228.1614241,0.00017321,2]
[393327729,1762479798604,-1000.0,0.00017321,2]
[393327730,1762479798644,-514.50625048,0.00017321,2]
[393327731,1762479798682,-397.0,0.00017647,2]
[393327732,1762479798720,-477.69294201,0.00017721,2]
[393327733,1762479798757,-858.98744833,0.00017721,2]
[393327734,1762479798793,-323.87201278,0.00017721,2]
[393327735,1762479798829,-1500.0,0.00017868,2]
[393327736,1762479798867,-270.25537232,0.00017899,2]
[393327737,1762479798886,-531.88144054,0.000179,2]
[393327738,1762479798897,-162.9167041,0.000179,2]
[393327739,1762479798908,-300.0,0.000179,2]
[393327740,1762479798920,-3111.2257978,0.000179,2]
[393327741,1762479798938,-3025.0436689,0.000179,2]
[393327742,1762479798948,-1111.18739108,0.000179,2]
[393327743,1762479798961,-1377.15870256,0.000179,2]
[393327744,1762479798972,-500.0,0.000179,2]
[393327745,1762479798985,-509.61755214,0.000179,2]
[393327746,1762479798997,-500.0,0.000179,2]
[393327747,1762479799008,-500.0,0.000179,2]
[393327748,1762479799019,-298.99871988,0.000179,2]
[393327749,1762479799031,-340.60330678,0.000179,2]
[393327750,1762479799041,-285.4774734,0.000179,2]
[393327751,1762479799052,-500.0,0.000179,2]
[393327752,1762479799063,-500.0,0.000179,2]
[393327753,1762479799074,-500.0,0.000179,2]
[393327754,1762479799085,-500.0,0.000179,2]
[393327755,1762479799095,-500.0,0.000179,2]
[393327756,1762479799189,-500.0,0.000179,2]
[393327757,1762479799200,-500.0,0.000179,2]
[393327758,1762479799211,-500.0,0.000179,2]
[393327759,1762479799223,-500.0,0.000179,2]
[393327760,1762479799234,-47433.04301063,0.000179,2]
[393327761,1762479799244,-300.0,0.000179,2]
[393327762,1762479799255,-300.0,0.000179,2]
[393327763,1762479799267,-300.0,0.000179,2]
[393327764,1762479799277,-1200.0,0.000179,2]
[393327765,1762479799288,-316.78,0.000179,2]
[393327766,1762479799299,-300.0,0.000179,2]
[393327767,1762479799309,-310.68906742,0.000179,2]
[393327768,1762479799320,-300.78160585,0.000179,2]
[393327769,1762479799331,-505.79206359,0.000179,2]
[393327770,1762479799341,-505.90371195,0.000179,2]
[393327771,1762479799352,-512.01841875,0.000179,2]
[393327772,1762479799363,-500.0,0.000179,2]
[393327773,1762479799374,-500.0,0.000179,2]
[393327774,1762479799385,-3253.88180337,0.000179,2]
[393327775,1762479799395,-218.38972017,0.000179,2]
[393327776,1762479799406,-228.1614241,0.000179,2]
[393327777,1762479799416,-1000.0,0.000179,2]
[393327778,1762479799427,-514.50625048,0.000179,2]
[393327779,1762479799439,-397.0,0.000179,2]
[393327780,1762479799450,-477.69294201,0.000179,2]
[393327781,1762479799461,-858.98744833,0.000179,2]
[393327782,1762479799472,-323.87201278,0.000179,2]
[393327783,1762479799483,-1500.0,0.000179,2]
[393327784,1762479799493,-270.25537232,0.000179,2]
[393327785,1762479799504,-271236.26878214,0.000179,2]
[393327788,1762479907493,250.0,0.00037206,120]
[393327789,1762479908140,250.0,0.00037206,120]
[393327790,1762479908766,250.0,0.00037206,120]
[393327791,1762479909413,250.0,0.00037206,120]
[393327792,1762479910044,250.0,0.00037206,120]
[393327793,1762479910667,250.0,0.00037206,120]
[393327794,1762479911304,250.0,0.00037206,120]
[393327795,1762479911935,250.0,0.00037206,120]
[393327796,1762479912621,250.0,0.00037206,120]
[393327798,1762479913796,250.0,0.00037206,120]
[393327799,1762479927179,1644.112268,0.00037206,35]
[393327800,1762479967562,155.33679617,0.00037206,30]
[393327864,1762480232961,-332.03700137,0.00016665,2]
[393327866,1762480232971,-507.0,0.00016665,2]
[393327868,1762480232980,-150.0,0.00016714,2]
[393327870,1762480232989,-300.0,0.00016763,2]
[393327872,1762480232999,-300.0,0.00016763,2]
[393327874,1762480233008,-300.0,0.00016763,2]
[393327876,1762480233017,-300.0,0.00016763,2]
[393327878,1762480233027,-300.0,0.00016763,2]
[393327880,1762480233036,-1200.0,0.00016763,2]
[393327882,1762480233045,-7587.18793468,0.00016764,2]
[393327884,1762480233055,-546.01008583,0.00016764,2]
[393327886,1762480233064,-158.14549422,0.00016764,2]
[393327888,1762480233073,-300.00000001,0.00016764,2]
[393327890,1762480233082,-500.0,0.00016764,2]
[393327892,1762480233092,-500.0,0.00016764,2]
[393327894,1762480233101,-500.0,0.00016764,2]
[393327896,1762480233110,-500.0,0.00016764,2]
[393327898,1762480233120,-500.0,0.00016764,2]
[393327900,1762480233129,-500.0,0.00016764,2]
[393327901,1762480233138,-500.0,0.00016764,2]
[393327902,1762480233147,-500.0,0.00016764,2]
[393327904,1762480233156,-500.0,0.00016764,2]
[393327913,1762480233267,-500.0,0.00016764,2]
[393327914,1762480233282,-500.0,0.00016764,2]
[393327915,1762480233292,-500.0,0.00016764,2]
[393327916,1762480233301,-500.0,0.00016764,2]
[393327917,1762480233312,-500.0,0.00016764,2]
[393327918,1762480233321,-500.0,0.00016764,2]
[393327919,1762480233330,-500.0,0.00016764,2]
[393327920,1762480233339,-558.2942386,0.00016764,2]
[393327921,1762480233349,-500.0,0.00016764,2]
[393327922,1762480233359,-500.0,0.00016764,2]
[393327923,1762480233369,-500.0,0.00016764,2]
[393327924,1762480233379,-500.0,0.00016764,2]
[393327925,1762480233388,-500.0,0.00016764,2]
[393327926,1762480233397,-500.0,0.00016764,2]
[393327927,1762480233407,-500.0,0.00016764,2]
[393327928,1762480233416,-500.0,0.00016764,2]
[393327929,1762480233426,-500.0,0.00016764,2]
[393327930,1762480233435,-500.0,0.00016764,2]
[393327931,1762480233445,-500.0,0.00016764,2]
[393327932,1762480233454,-500.0,0.00016764,2]
[393327933,1762480233463,-500.0,0.00016764,2]
[393327934,1762480233472,-500.0,0.00016764,2]
[393327935,1762480233481,-500.0,0.00016764,2]
[393327936,1762480233491,-500.0,0.00016764,2]
[393327937,1762480233500,-500.0,0.00016764,2]
[393327938,1762480233509,-500.0,0.00016764,2]
[393327939,1762480233519,-500.0,0.00016764,2]
[393327940,1762480233528,-500.0,0.00016764,2]
[393327941,1762480233538,-500.0,0.00016764,2]
[393327942,1762480233548,-500.0,0.00016764,2]
[393327943,1762480233559,-500.0,0.00016764,2]
[393327944,1762480233569,-500.0,0.00016764,2]
[393327945,1762480233579,-500.0,0.00016764,2]
[393327946,1762480233588,-500.0,0.00016764,2]
[393327947,1762480233598,-500.0,0.00016764,2]
[393327948,1762480233607,-500.0,0.00016764,2]
[393327949,1762480233616,-1200.0,0.00016764,2]
[393327950,1762480233625,-463.8640317,0.00016767,2]
[393327951,1762480233636,-332.7673294,0.00016769,2]
[393327952,1762480233724,-167.2326706,0.00016769,2]
[393327953,1762480233734,-384.86468457,0.00016769,2]
[393327954,1762480233744,-101.01967021,0.00016773,2]
[393327955,1762480233755,-406.31675056,0.00016773,2]
[393327956,1762480233764,-503.92341945,0.00016773,2]
[393327957,1762480233778,-270.06077972,0.00016773,2]
[393327958,1762480233787,-289.79905027,0.00016773,2]
[393327959,1762480233799,-213.76255357,0.00016773,2]
[393327960,1762480233812,-508.07870605,0.00016773,2]
[393327961,1762480233822,-372.62467577,0.00016773,2]
[393327962,1762480233834,-128.23147404,0.00016773,2]
[393327963,1762480233844,-500.0,0.00016773,2]
[393327964,1762480233854,-501.53936086,0.00016773,2]
[393327965,1762480233864,-502.8376313,0.00016773,2]
[393327966,1762480233874,-500.0,0.000168,2]
[393327967,1762480233883,-183.83,0.000168,2]
[393327968,1762480233893,-283.5615338,0.00017321,2]
[393327969,1762480233905,-661.1616948,0.00017321,2]
[393327970,1762480233915,-357.75873873,0.00017799,2]
[393327971,1762480233925,-1731.07956647,0.000178,2]
[393328001,1762480238638,-98.98878743,0.000178,2]
[393328002,1762480238648,-215.84350819,0.000178,2]
[393328003,1762480239113,-20199.86790364,0.000178,2]
[393328004,1762480239123,-391.44248496,0.00017889,2]
[393328005,1762480239132,-1053.94229404,0.00017896,2]
[393328006,1762480239141,-109946.51328786,0.000179,2]
[393328007,1762480239155,-13639.99864783,0.000179,2]
[393328008,1762480239170,-210795.35367324,0.000179,2]
[393328009,1762480239179,-21074.0686874,0.000179,2]
[393328252,1762480244148,-305.34100651,0.000179,2]
[393328269,1762480247104,-6751.47136769,0.000179,2]
[393328270,1762480247113,-582.38665339,0.000179,2]
[393328271,1762480247121,-537.33576591,0.00017904,2]
[393328272,1762480247212,-1292.73258798,0.00017904,2]
[393328273,1762480247222,-500.0,0.00017973,2]
[393328274,1762480247232,-6511.27990441,0.00018,2]
[393328288,1762480714052,678.0,0.00037199,20]
[393328289,1762480716247,607.754424,0.00013699,2]
[393328291,1762480792885,426.74900508,0.00018,3]
[393328292,1762480816177,492.12,0.00032877,120]
[393328294,1762480990351,234.37336427,0.00018,3]
[393328300,1762481096813,306.04672048,0.00018,3]
[393328301,1762481098719,1224.18688194,0.00018,3]
[393328303,1762481201149,2669369.30987438,0.00037201,20]
[393328304,1762481296775,412.1386498,0.00018,3]
[393328348,1762481431826,-254.17613803,0.00016,2]
[393328349,1762481431839,-228.82386197,0.00016,2]
[393328350,1762481431848,-150.0,0.00016189,2]
[393328351,1762481431858,-629.43070006,0.00016561,2]
[393328352,1762481431867,-206.23151933,0.000166,2]
[393328353,1762481431876,-206.23151931,0.000166,2]
[393328354,1762481431885,-1521.25720481,0.00016653,2]
[393328355,1762481431895,-206.23151931,0.00016656,2]
[393328356,1762481431904,-1200.0,0.00016752,2]
[393328357,1762481431914,-300.0,0.00016753,2]
[393328358,1762481431923,-300.0,0.00016753,2]
[393328359,1762481431932,-300.0,0.00016753,2]
[393328360,1762481431941,-300.0,0.00016753,2]
[393328361,1762481431950,-500.0,0.00016754,2]
[393328362,1762481431960,-507.79041797,0.00016754,2]
[393328363,1762481431969,-500.0,0.00016754,2]
[393328364,1762481431978,-500.0,0.00016754,2]
[393328365,1762481431988,-500.0,0.00016754,2]
[393328366,1762481431997,-500.0,0.00016754,2]
[393328367,1762481432006,-500.0,0.00016754,2]
[393328368,1762481432017,-500.0,0.00016754,2]
[393328369,1762481432027,-500.0,0.00016754,2]
[393328370,1762481432036,-500.0,0.00016754,2]
[393328371,1762481432045,-500.0,0.00016754,2]
[393328372,1762481432054,-500.0,0.00016754,2]
[393328373,1762481432063,-500.0,0.00016754,2]
[393328374,1762481432072,-500.0,0.00016754,2]
[393328375,1762481432082,-500.0,0.00016754,2]
[393328376,1762481432091,-500.0,0.00016754,2]
[393328377,1762481432106,-500.0,0.00016754,2]
[393328378,1762481432115,-500.0,0.00016754,2]
[393328379,1762481432124,-500.0,0.00016754,2]
[393328380,1762481432133,-282.71617164,0.00016754,2]
[393328381,1762481432143,-500.0,0.00016754,2]
[393328382,1762481432152,-500.0,0.00016754,2]
[393328383,1762481432162,-500.0,0.00016754,2]
[393328384,1762481432172,-500.0,0.00016754,2]
[393328385,1762481432182,-500.0,0.00016754,2]
[393328386,1762481432191,-288.61552159,0.00016754,2]
[393328387,1762481432200,-500.0,0.00016754,2]
[393328388,1762481432209,-500.0,0.00016754,2]
[393328389,1762481432219,-500.0,0.00016754,2]
[393328390,1762481432228,-500.0,0.00016754,2]
[393328391,1762481432238,-535.82942386,0.00016754,2]
[393328392,1762481432247,-500.0,0.00016754,2]
[393328393,1762481432256,-500.0,0.00016754,2]
[393328394,1762481432266,-500.0,0.00016754,2]
[393328395,1762481432275,-500.0,0.00016754,2]
[393328396,1762481432286,-500.0,0.00016754,2]
[393328397,1762481432297,-500.0,0.00016754,2]
[393328398,1762481432306,-500.0,0.00016754,2]
[393328399,1762481432316,-500.0,0.00016754,2]
[393328400,1762481432326,-500.0,0.00016754,2]
[393328401,1762481432336,-500.0,0.00016754,2]
[393328402,1762481432345,-500.0,0.00016754,2]
[393328403,1762481432355,-500.0,0.00016754,2]
[393328404,1762481432364,-500.0,0.00016754,2]
[393328405,1762481432373,-500.0,0.00016754,2]
[393328406,1762481432383,-500.0,0.00016754,2]
[393328407,1762481432392,-500.0,0.00016754,2]
[393328408,1762481432401,-500.0,0.00016754,2]
[393328409,1762481432411,-500.0,0.00016754,2]
[393328410,1762481432420,-500.0,0.00016754,2]
[393328411,1762481432429,-500.0,0.00016754,2]
[393328412,1762481432438,-500.0,0.00016754,2]
[393328413,1762481432448,-500.0,0.00016754,2]
[393328414,1762481432459,-500.0,0.00016754,2]
[393328415,1762481432469,-500.0,0.00016754,2]
[393328416,1762481432478,-500.0,0.00016754,2]
[393328417,1762481432488,-500.0,0.00016754,2]
[393328418,1762481432497,-500.0,0.00016754,2]
[393328419,1762481432507,-500.0,0.00016754,2]
[393328420,1762481432517,-500.0,0.00016754,2]
[393328421,1762481432527,-500.0,0.00016754,2]
[393328422,1762481432536,-500.0,0.00016754,2]
[393328423,1762481432546,-500.0,0.00016754,2]
[393328424,1762481432555,-500.0,0.00016754,2]
[393328425,1762481432564,-432.72827985,0.00016754,2]
[393328426,1762481432573,-500.0,0.00016754,2]
[393328427,1762481432582,-500.0,0.00016754,2]
[393328428,1762481432591,-500.0,0.00016754,2]
[393328429,1762481432600,-500.0,0.00016754,2]
[393328430,1762481432610,-500.0,0.00016754,2]
[393328431,1762481432619,-500.0,0.00016754,2]
[393328432,1762481432628,-500.0,0.00016754,2]
[393328433,1762481432638,-500.0,0.00016754,2]
[393328434,1762481432647,-500.0,0.00016754,2]
[393328435,1762481432656,-500.0,0.00016754,2]
[393328436,1762481432666,-500.0,0.00016754,2]
[393328437,1762481432675,-500.0,0.00016754,2]
[393328438,1762481432684,-250.0,0.00016754,2]
[393328439,1762481432693,-500.0,0.00016754,2]
[393328440,1762481432702,-500.0,0.00016754,2]
[393328441,1762481432712,-989.0,0.00016754,2]
[393328442,1762481432721,-16337.55306126,0.00016755,2]
[393328498,1762481439915,-495.62,0.00016755,2]
[393328776,1762481443199,-420.9599979,0.00016755,2]
[393328832,1762482138059,504896.89,0.0003287,120]
[393328947,1762482631964,-177.87264253,0.00016155,2]
[393328948,1762482631975,-147.12735747,0.00016155,2]
[393328949,1762482632018,-172.72322832,0.00016155,2]
[393328950,1762482632028,-1111.18739108,0.00016592,2]
[393328951,1762482632037,-150.0,0.00016598,2]
[393328952,1762482632046,-402.0,0.00016753,2]
[393328953,1762482632055,-283.0,0.00016753,2]
[393328954,1762482632064,-300.0,0.00016753,2]
[393328955,1762482632073,-1200.0,0.00016753,2]
[393328956,1762482632083,-1525.72643565,0.00016754,2]
[393328989,1762482637863,-310.24602,0.00016754,2]
[393328990,1762482637918,-4843.95019655,0.00016754,2]
[393328991,1762482637927,-504.08193778,0.00016758,2]
[393328992,1762482637937,-500.0,0.00016758,2]
[393328993,1762482637946,-3816.1897249,0.00016758,2]
[393328996,1762482640131,-3506.6754046,0.00016758,2]
[393328997,1762482640141,-500.0,0.00016772,2]
[393328998,1762482640151,-309.19068574,0.00016806,2]
[393328999,1762482640160,-548.08091998,0.00016806,2]
[393329000,1762482640170,-500.0,0.00016806,2]
[393329001,1762482640179,-500.0,0.00016806,2]
[393329002,1762482640189,-500.0,0.00016806,2]
[393329003,1762482640198,-500.0,0.00016806,2]
[393329004,1762482640208,-203.58294238,0.00016806,2]
[393329005,1762482640217,-394.26843685,0.00016806,2]
[393329006,1762482640238,-105.73156315,0.00016806,2]
[393329007,1762482640248,-403.86155216,0.00016806,2]
[393329008,1762482640257,-170.83859812,0.0001681,2]
[393329009,1762482640267,-500.0,0.0001681,2]
[393329010,1762482640277,-214.70892517,0.0001699,2]
[393329011,1762482640286,-1331.1000542,0.000175,2]
[393329012,1762482640296,-253.424,0.00017599,2]
[393329013,1762482640305,-500.0,0.00017599,2]
[393329014,1762482640315,-5490.20506167,0.000176,2]
[393329015,1762482640325,-1008.81421875,0.000176,2]
[393329315,1762482643237,-5784.13516201,0.000176,2]
[393329318,1762482643249,-6817.52489378,0.000176,2]
[393329320,1762482643258,-500.0,0.00017649,2]
[393329322,1762482643268,-508.41680506,0.00017673,2]
[393329324,1762482643277,-419.09934698,0.00017673,2]
[393329326,1762482643285,-421.26184383,0.00017673,2]
[393329328,1762482643297,-79.95694786,0.00017673,2]
[393329331,1762482643306,-150.35031034,0.00017673,2]
[393329334,1762482643315,-500.0,0.00017673,2]
[393329337,1762482643324,-527.10695619,0.00017673,2]
[393329340,1762482643333,-506.93446009,0.00017673,2]
[393329343,1762482643343,-319.44878888,0.00017699,2]
[393329346,1762482643352,-500.0,0.00017699,2]
[393329349,1762482643362,-204.1408785,0.00017699,2]
[393329548,1762483832254,-232.26760037,0.0001458,2]
[393329550,1762483832264,-21.68239963,0.0001458,2]
[393329646,1762483838216,-907.38800184,0.0001458,2]
[393329647,1762483838226,-2088.31799491,0.0001458,2]
[393329648,1762483838235,-499.0,0.00015346,2]
[393329649,1762483838245,-312.78379673,0.00015347,2]
[393329650,1762483838254,-562.44782327,0.00015347,2]
[393329651,1762483838263,-150.0,0.00015751,2]
[393329652,1762483838273,-353.67382045,0.00016155,2]
[393329653,1762483838282,-335.96532942,0.00016807,2]
[393329654,1762483838292,-849.1071222,0.00017187,2]
[393329655,1762483838301,-1823.0659768,0.00017187,2]
[393329656,1762483838310,-4703.24518943,0.00017187,2]
[393329750,1762483846592,-1224.84378788,0.00017187,2]
[393329751,1762483846602,-474.08326521,0.00017399,2]
[393329752,1762483846613,-838.30396616,0.00017399,2]
[393329753,1762483846622,-500.0,0.00017499,2]
[393329754,1762483846632,-500.0,0.00017499,2]
[393329755,1762483846641,-189.2869936,0.00017499,2]
[393329756,1762483846650,-266.40752617,0.00017499,2]
[393329757,1762483846659,-157.90336459,0.00017499,2]
[393329758,1762483846668,-500.0,0.00017499,2]
[393329759,1762483846678,-500.0,0.00017499,2]
[393329760,1762483846687,-349.20916841,0.00017499,2]
[393329761,1762483846696,-516.5490148,0.00017499,2]
[393329762,1762483846706,-6477.90834618,0.000175,2]
[393329763,1762483846758,-2595.74117018,0.000175,2]
[393329764,1762483846767,-500.0,0.00017567,2]
[393329765,1762483846777,-1341.91826255,0.00017589,2]
[393329775,1762484083105,519.7,0.00014494,2]
[393329778,1762484122515,-1164.71254746,0.00017489,2]
[393329779,1762484122542,-500.0,0.00017499,2]
[393329780,1762484122565,-6049.09967758,0.000175,2]
[393329781,1762484122588,-150.0,0.00017544,2]
[393329782,1762484122610,-166.287787,0.00017587,2]
[393329783,1762484122634,-1964.01611867,0.00017587,2]
[393329784,1762484122655,-1964.01611867,0.00017587,2]
[393329785,1762484122676,-1964.01611867,0.00017587,2]
[393329786,1762484122699,-1964.01611867,0.00017587,2]
[393329787,1762484122723,-1964.01611867,0.00017587,2]
[393329788,1762484122746,-1964.01611867,0.00017587,2]
[393329789,1762484122768,-1964.01611867,0.00017587,2]
[393329790,1762484122789,-1964.01611867,0.00017587,2]
[393329791,1762484122810,-1964.01611867,0.00017587,2]
[393329792,1762484122832,-1964.01611867,0.00017587,2]
[393329793,1762484122853,-1964.01611867,0.00017587,2]
[393329794,1762484122881,-1964.01611867,0.00017587,2]
[393329795,1762484122903,-1964.01611867,0.00017587,2]
[393329796,1762484122924,-1964.01611867,0.00017587,2]
[393329797,1762484122945,-1964.01611867,0.00017587,2]
[393329798,1762484122967,-1964.01611867,0.00017587,2]
[393329799,1762484122992,-1964.01611867,0.00017587,2]
[393329800,1762484123015,-1964.01611867,0.00017587,2]
[393329801,1762484123037,-1964.01611867,0.00017587,2]
[393329802,1762484123059,-1964.01611867,0.00017587,2]
[393329803,1762484123083,-1964.01611867,0.00017587,2]
[393329804,1762484123105,-1964.01611867,0.00017587,2]
[393329805,1762484123129,-1964.01611867,0.00017587,2]
[393329806,1762484123151,-1964.01611867,0.00017587,2]
[393329807,1762484123173,-1964.01611867,0.00017587,2]
[393329808,1762484123196,-1964.01611867,0.00017587,2]
[393329809,1762484123220,-1964.01611867,0.00017587,2]
[393329810,1762484123244,-1964.01611867,0.00017587,2]
[393329811,1762484123266,-1964.01611867,0.00017587,2]
[393329812,1762484123289,-1964.01611867,0.00017587,2]
[393329813,1762484123312,-1964.01611867,0.00017587,2]
[393329814,1762484123335,-1964.01611867,0.00017587,2]
[393329815,1762484123360,-1964.01611867,0.00017587,2]
[393329816,1762484123383,-1964.01611867,0.00017587,2]
[393329817,1762484123406,-1964.01611867,0.00017587,2]
[393329818,1762484123428,-1964.01611867,0.00017587,2]
[393329819,1762484123451,-1964.01611867,0.00017587,2]
[393329820,1762484123473,-1964.01611867,0.00017587,2]
[393329821,1762484123496,-1964.01611867,0.00017587,2]
[393329822,1762484123522,-1964.01611867,0.00017587,2]
[393329823,1762484123546,-1964.01611867,0.00017587,2]
[393329824,1762484123568,-1964.01611867,0.00017587,2]
[393329825,1762484123591,-1964.01611867,0.00017587,2]
[393329826,1762484123615,-1964.01611867,0.00017587,2]
[393329827,1762484123638,-1964.01611867,0.00017587,2]
[393329828,1762484123662,-1964.01611867,0.00017587,2]
[393329829,1762484123685,-1964.01611867,0.00017587,2]
[393329830,1762484123708,-1964.01611867,0.00017587,2]
[393329831,1762484123732,-1964.01611867,0.00017587,2]
[393329832,1762484123757,-1964.01611867,0.00017587,2]
[393329833,1762484123779,-1964.01611867,0.00017587,2]
[393329834,1762484123802,-1964.01611867,0.00017587,2]
[393329835,1762484123826,-1964.01611867,0.00017587,2]
[393329836,1762484123850,-1964.01611867,0.00017587,2]
[393329837,1762484123875,-1964.01611867,0.00017587,2]
[393329838,1762484123901,-1964.01611867,0.00017587,2]
[393329839,1762484123925,-1964.01611867,0.00017587,2]
[393329840,1762484123948,-1964.01611867,0.00017587,2]
[393329841,1762484123972,-1964.01611867,0.00017587,2]
[393329842,1762484124000,-1964.01611867,0.00017587,2]
[393329843,1762484124024,-1964.01611867,0.00017587,2]
[393329844,1762484124049,-1964.01611867,0.00017587,2]
[393329845,1762484124072,-1964.01611867,0.00017587,2]